Cogmind - Beta 17.1 @@@ ROGUE MODE // 2026.09.04 @ 22:20:39 Player: UnderDoug Result: Destroyed by 7G-IDL(R) with Subdweller Laser Performance ------------- Evolutions (0) 0 Regions Visited (2) 400 Robots Destroyed (34) 170 Value Destroyed (849) 849 Prototype IDs (1) 20 Alien Tech Used (0) 0 Bonus (5600) 5600 TOTAL SCORE: 7039 Bonus ------- Prayed to X0-1V1 5000 Major X0-1V1 Interference 600 Cogmind --------- Core Integrity 0/150 Matter 172/500 Energy 1050/1050 System Corruption 0% Temperature Cool (6) Movement Walking (190) Ox1 Location -10/Subcaves Parts ------- > --- POWER (1) -------- Ion Engine > --- PROPULSION (2) --- Aluminum Leg Aluminum Leg > --- UTILITY (2) ------ Large Storage Unit X0-1V1's Piety Tracker > --- WEAPON (2) ------- Light Assault Rifle Grenade Launcher > --- INVENTORY (15) --- Subdweller Power Source Subdweller Power Source Spiked Treads Aluminum Leg Aluminum Leg Subdweller Monowheel Visual Processing Unit Sensor Array ECM Suite Makeshift Light Armor Plating Scrap Shield Medium Laser Light Assault Rifle Mining Laser Peak State ------------ > --- POWER ------------ Ion Engine > --- PROPULSION ------- Aluminum Leg Aluminum Leg > --- UTILITY ---------- Large Storage Unit X0-1V1's Piety Tracker > --- WEAPON ----------- Light Assault Rifle Grenade Launcher > --- INVENTORY -------- Ion Engine Subdweller Power Source Light Treads Aluminum Leg Aluminum Leg Subdweller Monowheel Visual Processing Unit Sensor Array ECM Suite Scrap Shield EM Pulse Gun Medium Laser Light Assault Rifle Mining Laser [Rating: 21] Favorites ----------- Power Ion Engine Engine Ion Engine Propulsion Aluminum Leg Leg Aluminum Leg Utility Large Storage Unit Device X0-1V1's Piety Tracker Storage Large Storage Unit Weapon Light Assault Rifle Energy Gun Medium Laser Energy Cannon Particle Cannon Ballistic Gun Light Assault Rifle Launcher Grenade Launcher Special Weapon Mining Laser Build | -11 -10 -10 ------- Run | Yrd Mat Sub Slots Evolved . | . . . Power . | . . . Propulsion . | . . . Utility . | . . . Weapon . | . . . Parts Attached 32 | 9 20 3 Power 5 | 2 2 1 Engine 5 | 2 2 1 Core . | . . . Reactor . | . . . Propulsion 12 | 2 8 2 Treads . | . . . Leg 12 | 2 8 2 Wheel . | . . . Hover . | . . . Flight . | . . . Utility 6 | 3 3 . Device 4 | 2 2 . Storage 2 | 1 1 . Processor . | . . . Hackware . | . . . Protection . | . . . Artifact . | . . . Weapon 9 | 2 7 . Energy Gun 2 | 2 . . Energy Cannon 1 | . 1 . Ballistic Gun 4 | . 4 . Ballistic Cannon . | . . . Launcher 1 | . 1 . Special Weapon 1 | . 1 . Impact Weapon . | . . . Slashing Weapon . | . . . Piercing Weapon . | . . . Special Melee Weapon . | . . . Unidentified Prototypes 1 | . 1 . Parts Lost 7 | . 5 2 Power 3 | . 2 1 Propulsion 1 | . 1 . Utility 2 | . 2 . Weapon 1 | . . 1 Highest Loss Streak 1 | . 1 1 To Critical Strikes . | . . . Average Backups 12 | 6 12 14 Power 1 | . . 1 Propulsion 5 | 3 6 4 Utility 2 | . 1 3 Weapon 4 | 1 4 3 Tool/Special . | . . . Unused Backups 16 | 1 1 14 Power 3 | 1 . 2 Propulsion 8 | . 1 7 Utility 4 | . . 4 Weapon 1 | . . 1 Tool/Special . | . . . Average Slot Usage (%) 96 | . 96 95 Engine 11 | . 12 10 Leg 27 | . 27 28 Device 13 | . 13 14 Storage 14 | . 14 14 Energy Gun 3 | . 7 . Energy Cannon 1 | . 1 . Ballistic Gun 16 | . 17 16 Launcher 5 | . . 11 Peak Build Rating 21 | 9 20 21 Average Rating 14 | 6 9 20 On Entrance 9 | . 8 20 Avg Prop Armor Cover (%) . | . . . Naked Turns . | . . . Heaviest Build 32 | 15 32 30 Greatest Support 20 | 20 20 20 Greatest Overweight (x) 3 | 2 3 1 Average Overweight (x) . | . 1 1 Largest Inventory Capacity 15 | 8 15 15 Average Capacity 14 | 7 14 15 Most Carried 15 | 8 15 15 Average Carried 13 | 6 12 14 Final Capacity 15 | 8 15 15 Final Carried 15 | 8 15 15 Class Distribution -------------------- 89% | Mutant 10% | Scavenger-Mutant Dominant Class ---------------- Mutant | -10/Materials Mutant | -10/Subcaves Resources | -11 -10 -10 ----------- Run | Yrd Mat Sub Matter Collected 969 | 290 393 286 Remotely . | . . . Salvage Created 906 | 179 590 137 Parts 62 | 17 33 12 Haulers Intercepted . | . . . Recyclers Shooed 1 | 1 . . Parts Field Recycled . | . . . Retrieved Matter . | . . . Parts Self-Destructed 13 | . . 13 Prevented . | . . . Parts Restored . | . . . Kills | -11 -10 -10 ------- Run | Yrd Mat Sub Combat Hostiles Destroyed 22 | . 16 6 Guns 10 | . 8 2 Cannons 4 | . 4 . AOE 7 | . 3 4 Classes Destroyed 8 | 3 3 2 Worker 2 | 2 . . Tunneler 5 | 5 . . Recycler 1 | 1 . . Turret 2 | . . 2 Watcher 2 | . 2 . Swarmer 5 | . 3 2 Grunt 13 | . 13 . Subdweller 4 | . . 4 Best Kill Streak 4 | 4 3 3 Combat Bots Only 3 | . 3 2 Max Kills in Single Turn 3 | 1 3 1 Gunslinging . | . . . Exploded 3 | . 3 1 Melee . | . . . Uniques/NPCs Destroyed . | . . . Combat | -11 -10 -10 -------- Run | Yrd Mat Sub Hostile Shots Fired 146 | . 94 52 Missed 38 | . 20 18 Hits 108 | . 74 34 Projectile 108 | . 74 34 Critical Strikes 2 | . 1 1 Damage Taken 1597 | . 961 636 Core 330 | . 144 186 Absorbed by Shields . | . . . Regen/Repaired (Parts) 54 | . 54 . Core Remaining (%) 100 | 100 . . Volleys Fired 114 | 18 57 39 Largest 2 | 2 2 2 Hottest 120 | 100 120 120 Shots Fired 218 | 36 106 76 Gun 173 | 36 87 50 Cannon 14 | . 14 . Launcher 26 | . 1 25 Special 5 | . 4 1 Kinetic 102 | . 52 50 Thermal 90 | 36 53 1 Explosive 26 | . 1 25 Electromagnetic . | . . . Robot Hit Streak 12 | 4 12 9 Robot Miss Streak 5 | 2 5 2 Penetration Max . | . . . Secondary Targets 2 | . 1 1 Max Gunslinging Chain 1 | . 1 1 Shots Hit Robots 116 | 21 67 28 Core Hits 68 | 9 37 22 Critical Kills 1 | . 1 . Critical Parts Destroyed . | . . . Critical Strikes 5 | 3 2 . Burn 4 | 3 1 . Destroy 1 | . 1 . Melee Attacks . | . . . Impact . | . . . Slashing . | . . . Piercing . | . . . Sneak Attacks . | . . . Combat Hostiles . | . . . Follow-up Attacks . | . . . Damage Inflicted 2060 | 276 980 804 Guns 1100 | 276 628 196 Cannons 202 | . 202 . Explosions 758 | . 150 608 Melee . | . . . Ramming . | . . . Kinetic 484 | . 288 196 Thermal 818 | 276 542 . Explosive 758 | . 150 608 Electromagnetic . | . . . Impact . | . . . Slashing . | . . . Piercing . | . . . Highest Corruption . | . . . Average Corruption . | . . . Corruption Purged . | . . . Corruption Blocked . | . . . Overload Shots . | . . . Overflow Damage 7 | . . 7 Projectiles . | . . . Explosions 7 | . . 7 Melee . | . . . Knockbacks . | . . . Impact . | . . . Kinetic . | . . . Secondary . | . . . Self-Inflicted Damage 76 | . 18 58 Shots 5 | . 1 4 Rammed . | . . . Targets Rammed . | . . . Kicked . | . . . Crushed . | . . . Highest Temperature 432 | 202 432 . Average Temperature 124 | 73 149 . Received Heat Transfer 612 | . 540 72 Effects 6 | . 6 . Shutdowns 2 | . 2 . Interference 4 | . 4 . Siege Activations . | . . . Martial Activations . | . . . Shielding Activations . | . . . Robots Disrupted . | . . . Combat Hostiles . | . . . Robots Corrupted . | . . . Combat Hostiles . | . . . Parts Fried . | . . . Impact Corruptions . | . . . Robots Melted 1 | . 1 . Combat Hostiles 1 | . 1 . Parts Melted 6 | 1 5 . Heat Transferred 2479 | 1036 1443 . Parts Sabotaged . | . . . Parts Stolen . | . . . Parts Stripped . | . . . Power Chain Reactions . | . . . Alert | -11 -10 -10 ------- Run | Yrd Mat Sub Maximum Alert Level . | . . . Low Security (%) 100 | 100 100 . Level 1 . | . . . Level 2 . | . . . Level 3 . | . . . Level 4 . | . . . Level 5 . | . . . High Security . | . . . Max Security . | . . . Peak Influence 116 | 10 116 . Initial 3 | . 3 . Average 26 | 2 29 . Influence Increases 810 | 40 465 305 Destroy 0b10 Robot/C 400 | . 320 80 Destroy 0b10 Robot/NC 50 | 40 10 . Destroy Leader 84 | . 84 . Successful Hack 26 | . 26 . Disable Machine 15 | . 15 . Destroy Structure 10 | . 10 . Lose Combat Pursuer 225 | . . 225 Influence Decreases 555 | 35 462 58 Entered New Map 6 | . 2 4 Time Decay 519 | 35 430 54 Lost Part 30 | . 30 . Squads Dispatched 3 | . 3 . Investigation . | . . . Extermination . | . . . Reinforcement 3 | . 3 . Assault . | . . . Garrison . | . . . Intercept . | . . . Searches Triggered . | . . . Construction Impeded . | . . . Haulers Reinforced . | . . . Active Scanning Responses . | . . . Cargo Convoy Interrupts . | . . . Stealth | -11 -10 -10 --------- Run | Yrd Mat Sub Distress Signals 2 | . 2 . Communications Jammed . | . . . Distress Signals . | . . . Times Spotted 38 | . 25 13 Peak Tracking Total 4 | . 4 2 Tactical Retreats 3 | . . 3 Traps | -11 -10 -10 ------- Run | Yrd Mat Sub Traps Triggered 3 | . 3 . Indirectly . | . . . Trap Hack Attempts . | . . . Triggered . | . . . Disarmed . | . . . Reprogrammed . | . . . Reused . | . . . Traps Extracted . | . . . Installed . | . . . Triggered . | . . . Machines | -11 -10 -10 ---------- Run | Yrd Mat Sub Machines Disabled 4 | . 1 3 Max in Single Turn 2 | . 1 2 Machines Repaired . | . . . Machines Dismantled . | . . . Machines Sabotaged . | . . . Overloaded Fab Kills . | . . . Hacking | -11 -10 -10 --------- Run | Yrd Mat Sub Machines Accessed 8 | . 6 2 Terminals 5 | . 5 . Fabricators . | . . . Repair Stations 1 | . 1 . Recycling Units . | . . . Scanalyzers . | . . . Garrison Access . | . . . Total Hacks 19 | . 17 2 Successful 12 | . 10 2 Failed 7 | . 7 . Catastrophic 1 | . 1 . Database Lockouts . | . . . Manual 14 | . 14 . Terminals 15 | . 15 . Fabricators . | . . . Repair Stations 2 | . 2 . Recycling Units . | . . . Scanalyzers . | . . . Garrison Access . | . . . Terminal Hacks 5 | . 3 2 Robot Schematic 1 | . 1 . Open Door 1 | . . 1 Surveillance Status 1 | . 1 . Zone Layout 1 | . 1 . Release Object 1 | . . 1 Fabricator Hacks . | . . . Repair Station Hacks 2 | . 2 . Scan Component 1 | . 1 . Repair 1 | . 1 . Recycling Unit Hacks . | . . . Scanalyzer . | . . . Garrison Access Hacks . | . . . Unauthorized Hacks 5 | . 5 . Terminals 5 | . 5 . Skim 5 | . 5 . Fabricators . | . . . Repair Stations . | . . . Recycling Units . | . . . Scanalyzers . | . . . Garrison Access . | . . . Data Cores Recovered . | . . . Used . | . . . Hacking Detections 5 | . 5 . Full Trace Events . | . . . Feedback Events . | . . . Feedback Blocked . | . . . Robot Schematics Acquired 1 | . 1 . Robots Built . | . . . Authchips . | . . . Time . | . . . Total Robot Build Rating . | . . . Part Schematics Acquired . | . . . Parts Built . | . . . Authchips . | . . . Time . | . . . Total Part Build Rating . | . . . Part Studies Acquired . | . . . Parts Repaired 1 | . 1 . Time 26 | . 26 . Parts Recycled . | . . . Recycled Matter . | . . . Retrieved Matter . | . . . Retrieved Components . | . . . Parts Scanalyzed . | . . . Part Schematics Acquired . | . . . Parts Damaged . | . . . Bothacking | -11 -10 -10 ------------ Run | Yrd Mat Sub Used RIF Installer . | . . . Robots Hacked . | . . . Non-combat . | . . . Combat . | . . . Robot Hacks Applied . | . . . Relay Couplers Released . | . . . Fabnet Peak Effective % . | . . . Robots Rewired . | . . . Allies Hacked . | . . . Hacks Repelled . | . . . Allies | -11 -10 -10 -------- Run | Yrd Mat Sub Total Allies . | . . . Largest Group . | . . . Highest-Rated Group . | . . . Highest-Rated Ally . | . . . Total Orders . | . . . Ally Attacks . | . . . Total Damage . | . . . Kills . | . . . Allies Corrupted . | . . . Allies Melted . | . . . X0-1V1 Amusement Gains 104 | . 12 92 Average Entertainment 37 | . 12 37 Good Acts 4 | . . 4 Bad Acts 5 | . . 5 Intel | -11 -10 -10 ------- Run | Yrd Mat Sub Active Infowar (turns) 2058 | 142 1916 . Sensors 202 | . 202 . Terrain 1297 | 41 1256 . Seismic 559 | 101 458 . Robot Analysis Total . | . . . Derelict Logs Recovered 2 | . . 2 Drone Launches . | . . . Drone Recoveries . | . . . Exploration | -11 -10 -10 ------------- Run | Yrd Mat Sub Turns Passed 3901 | 235 1960 1706 Spaces Moved 1718 | 104 794 820 Core 11 | 11 . . Treads . | . . . Legs 1707 | 93 794 820 Wheels . | . . . Hover . | . . . Flight . | . . . Fastest Speed 50 | 50 120 190 Average Speed 186 | 120 191 190 Slowest Speed 330 | 190 330 190 Overloaded Moves . | . . . Propulsion Burnouts . | . . . Robots Hopped . | . . . Potential Cave-ins . | . . . Cave-ins Triggered . | . . . Exploration Rate (%) 47 | 5 97 40 Regions Visited 2 Branch Regions 1 Pre-discovered Areas 1 | . 1 . Known Exits Taken . | . . . Unknown Exits Taken 2 | 1 1 . Scrap Searched 3 | . . 3 Spaces Dug 4 | . 4 . Terrain Destroyed 91 | . 9 82 Melee . | . . . Projectile 4 | . 4 . AOE 87 | . 5 82 Terrain Rammed . | . . . Walls Destroyed . | . . . Machines Disabled . | . . . Actions | -11 -10 -10 --------- Run | Yrd Mat Sub Total 2200 | 173 1125 902 Wait 263 | 33 208 22 Move 1716 | 103 793 820 Hop . | . . . Pick Up 34 | 9 18 7 Fast Attach 17 | 7 10 . Attach 6 | . 4 2 Detach . | . . . Swap 29 | 2 22 5 Drop 20 | 1 13 6 Fire 114 | 18 57 39 Melee . | . . . Ram . | . . . Kick . | . . . Crush . | . . . Escape Stasis . | . . . Rewire . | . . . Trap . | . . . Miscellaneous 1 | . . 1 Route ------- -11/Scrapyard -10/Materials (discovered 6 exits: [*Mat x3] / [*Min x2] / *Sub) -10/Subcaves (discovered 2 exits: Mat / *Rec) History --------- Turn | Location | Event 2 | -11/Scrapyard | Met Revision 17 14 | -11/Scrapyard | Discovered new exit (range 16) 236 | -11/Scrapyard | Entered Materials 303 | -10/Materials | Build established: Mutant 392 | -10/Materials | Discovered new exit (range 14) 708 | -10/Materials | Discovered new exit (range 10) 787 | -10/Materials | Core integrity fell below 50% 935 | -10/Materials | Discovered new exit (range 12) 998 | -10/Materials | Learned Recycling recycling unit intel 1102 | -10/Materials | Learned 4 Subcaves zone layouts 1114 | -10/Materials | Learned Storage emergency access door positions 1116 | -10/Materials | Learned location of 2 exits from Subcaves 1147 | -10/Materials | Loaded intel: 8 terminal locations 1317 | -10/Materials | Discovered new exit (range 13) 1637 | -10/Materials | Repaired Med. Laser 1669 | -10/Materials | Discovered new exit (range 16) 2171 | -10/Materials | Discovered new exit (range 6) 2182 | -10/Materials | Prayed at D.C.S.S. Altar Unit 2196 | -10/Materials | Entered Subcaves 2197 | -10/Subcaves | Identified exit to Recycling 2197 | -10/Subcaves | Identified exit to Materials 2249 | -10/Subcaves | Learned Materials emergency access door positions 2296 | -10/Subcaves | Matter capacity permanently improved by X0-1V1 (+200; -100 max core) 2394 | -10/Subcaves | Ambushed by Subdwellers from Twisted Machinery 2468 | -10/Subcaves | Core integrity fell below 20% 2473 | -10/Subcaves | X0-1V1 sent you into danger 2675 | -10/Subcaves | Released subatomizers from SUBCON Basin 3208 | -10/Subcaves | Shifting Twisted Machinery released Sub. Laser 3239 | -10/Subcaves | Shifting Twisted Machinery released Scrap Shield 3279 | -10/Subcaves | X0-1V1 rescued you from certain death 3599 | -10/Subcaves | Core integrity restored by X0-1V1 (+22) 3628 | -10/Subcaves | X0-1V1 sent you into danger 3902 | -10/Subcaves | Destroyed by 7G-IDL(R) with Subdweller Laser Last Messages --------------- Subatomizers dissect the Sub. Optics. The unstable cave ceiling collapses. Destroyed Autobeam. Autobeam Turret destroyed. The unstable cave ceiling collapses. Subatomizers dissect the Sub. Optics. Acquired 16 matter. Subatomizers dissect the Sub. Optics. Acquired 26 matter. Acquired 20 matter. Acquired 46 matter. Subatomizers dissect the Sub. Optics, destroying it. Acquired Sub. Power Source. Subatomizers dissect the Sub. Optics. X0-1V1 makes important surrounding features appear closer to you (+3 sight range). 7G-IDL(R): "SUBMAD!" The unstable cave ceiling collapses. X0-1V1 bursts into laughter! Map ----- +----------------------------------------------------+ | ???????## ### ##??????##????????????????? | | ??????## ##?????????????????????????? | | ?????## ###??????????????????????????? | | ?????# # #????????????????????????????? | | ?????# ###### ##???????????????????????????? | | ????## ##### #???????????????????????????? | | ????# ## #???????????????????????????? | | ### ### #####???????????????????????????? | | ???## ### ##??????????????????????????????? | | # ?????# #?# #??????????????????????????????? | | # ??????## #### ##???######?????????????????????? | | #???????## ## ##??# ##????????????????????? | | ????????# ##?## ##???????????????????? | | ????????### #??# #???????????????????? | | ??????????### ##?# #???????????????????? | | ????????????## ### #???????????????????? | | ?????????????# #???????????????????? | | ?????????????# #???????????????????? | | ????????????## ##???????????????????? | | ????????????# #????????????????????? | | ????????????## # ###??????????????????? | | ?????????????# # #??????????????????? | | ?????????????# # ##??????????????????? | | ?????????????# # ##???????????????????? | | ???????????? # ## #????????????????????? | | ???????????" ##### @ #????????????????????? | | ?????????? #????# #????????????????????? | | ??????????#" ##????## #???????????????????? | | ??????????? ???????## #???????????????????? | | ??????????? #????????# R #???????????????????? | | ?????????? #?????????# #???????????????????? | | ?????????? ??????????## ???????????????????? | | ?????????? #??????????? ??????????????????? | | ???????????????????????? ?????????????????? | | ??????????????????????? ?????????????????? | | ??????????????????????? ????????????????? | | ?????????????????????? ???????????????? | | ?????????????## # #?#???????????? | | ?????????????### #### ##?????????????? | | ????????????? ## #??# #??????????????? | | ????????????? ##?# ##?????????????? | | ????????????? ### ##????????????? | | ????????????? ### ##???????????? | | ????????????? ### ???????????? | | ????????????? #?## ???????????? | | ????????????? #### ##?## ???????????? | | ????????????? ##### ##?# #???????????? | | ????????????? ## ## #### #???????????? | | ????????????? ## #?# ???????????? | | ????????????? #?## ???????????? | +----------------------------------------------------+ Best States ------------- Heat Dissipation 25 Energy Generation 10 Energy Capacity 1050 Matter Stores 335 Matter Capacity 500 Sight Range 19 Robot Scan Range 14 Terrain Scan Range 16 Terrain Scan Density 10 Evasion (%) 55 Item Schematics ----------------- None Robot Schematics ------------------ G-34 Mercenary | -10/Materials | Hacked Fabricated ------------ Nothing Repaired ---------- Med. Laser | 22% | -10/Materials Studied --------- None Alien Tech Used ----------------- None Achievements -------------- None Challenges ------------ None Game ------ Seed AntimatterSeismicCycler Manual? 0 Play Time 00:34:15 Cumulative 18.4 hours Start 2026.09.04 @ 20:18:57 End 2026.09.04 @ 22:20:39 Sessions 1 Manual Loads 0 Difficulty Rogue Special Mode None Game No. 36 Rogue 36 Adventurer 0 Explorer 0 Win Type - Total 0 Types 0/0/0/0/0/0/0/0/0/0 Lore% 30 Gallery% 17 Achievement% 16 Wizard Run 0 Options --------- Layout 1 ASCII 0 Keyboard 0 Movement Mouse Keybinds 0 Fullscreen 2 Font 24/X11 Map View 50x35 Zoom Use 0% Tactical HUD 0 Map Filters NONE Filters NONE Steam 1 RUN: 28dacc67-30b2-4258-be4b-cab41386d893